fUSD/lending_fUSD_20260521
["ID","MTS","AMOUNT","RATE_DAILY","PERIOD"]
[422766914,1779371952000,-1798.21,0.00040832,120]
[422766915,1779371952000,-607641.48452389,0.00041,120]
[422766916,1779371952000,-1000000.0,0.00041,120]
[422766917,1779371952000,-1000000.0,0.00041,120]
[422766919,1779371952000,-1000000.0,0.00041,120]
[422766911,1779371952000,-4045.94976772,0.00039999,31]
[422766925,1779371953000,-1500.45,0.00041,30]
[422766920,1779371953000,-999999.0,0.00041,120]
[422766921,1779371953000,-1037.54,0.00041,30]
[422766922,1779371953000,-151.0,0.00041,30]
[422766923,1779371953000,-151.0,0.00041,30]
[422766924,1779371953000,-1500.45,0.00041,30]
[422766926,1779371953000,-1500.45,0.00041,30]
[422766934,1779371953000,-151.0,0.00041,30]
[422766927,1779371953000,-1500.45,0.00041,30]
[422766930,1779371953000,-1000000.0,0.00041,120]
[422766929,1779371953000,-1000000.0,0.00041,120]
[422766931,1779371953000,-151.0,0.00041,30]
[422766932,1779371953000,-151.0,0.00041,30]
[422766933,1779371953000,-151.0,0.00041,30]
[422766935,1779371953000,-151.0,0.00041,30]
[422766928,1779371953000,-1000000.0,0.00041,120]
[422766936,1779371954000,-365185.50169615,0.00041,120]
[422766937,1779371958000,-152.14,0.00028156,30]
[422766939,1779371958000,-501.67997778,0.00032999,30]
[422766940,1779371958000,-634814.49830385,0.00041,120]
[422766938,1779371958000,-152.14,0.00028156,30]
[422766945,1779371959000,-577.740962,0.00041,30]
[422766941,1779371959000,-1000000.0,0.00041,120]
[422766942,1779371959000,-1000000.0,0.00041,120]
[422766943,1779371959000,-577.740962,0.00041,30]
[422766944,1779371959000,-577.740962,0.00041,30]
[422766946,1779371959000,-151.0,0.00041,30]
[422766951,1779371959000,-1798.21,0.00041039,120]
[422766948,1779371959000,-151.0,0.00041,30]
[422766949,1779371959000,-164.594686,0.00041,30]
[422766950,1779371959000,-424.43,0.00041,30]
[422766952,1779371959000,-3082.65,0.00041039,120]
[422766953,1779371959000,-500.0,0.00041041,120]
[422766954,1779371959000,-500.0,0.00041041,120]
[422766947,1779371959000,-577.740962,0.00041,30]
[422766959,1779371960000,-500.0,0.00041041,120]
[422766956,1779371960000,-500.0,0.00041041,120]
[422766957,1779371960000,-500.0,0.00041041,120]
[422766958,1779371960000,-500.0,0.00041041,120]
[422766960,1779371960000,-630.31009239,0.00041041,120]
[422766955,1779371960000,-500.0,0.00041041,120]
[422766963,1779371960000,-1798.21,0.00041245,120]
[422766962,1779371960000,-382.938461,0.000412,55]
[422766964,1779371960000,-398.256,0.00041422,56]
[422766965,1779371960000,-152.0,0.00041483,120]
[422766966,1779371960000,-398.256,0.00041486,56]
[422766961,1779371960000,-371.255,0.000411,54]
[422766968,1779371961000,-25000.0,0.000418,120]
[422766967,1779371961000,-1483.0,0.00041644,120]
[422766969,1779371961000,-410.3621,0.00041854,120]
[422766970,1779371961000,-254.45364293,0.000419,120]
[422766972,1779371961000,-162.758272,0.0004197,120]
[422766971,1779371961000,-4251750.32017378,0.0004197,30]
[422766973,1779371961000,-162.758272,0.0004197,120]
[422766974,1779371961000,-162.758272,0.0004197,120]
[422766976,1779371961000,-282.484073,0.0004197,120]
[422766975,1779371961000,-162.758272,0.0004197,120]
[422766977,1779371961000,-273.746636,0.0004197,120]
[422766978,1779371961000,-1500.45,0.0004197,120]
[422766980,1779371961000,-1500.45,0.0004197,120]
[422766979,1779371961000,-1500.45,0.0004197,120]
[422766981,1779371962000,-1500.45,0.0004197,120]
[422766982,1779371962000,-151.0,0.0004197,120]
[422766983,1779371962000,-151.0,0.0004197,120]
[422766984,1779371962000,-151.0,0.0004197,120]
[422766985,1779371962000,-151.0,0.0004197,120]
[422766988,1779371962000,-577.740962,0.0004197,120]
[422766987,1779371962000,-577.740962,0.0004197,120]
[422766992,1779371962000,-151.0,0.0004197,120]
[422766989,1779371962000,-577.740962,0.0004197,120]
[422766990,1779371962000,-151.0,0.0004197,120]
[422766991,1779371962000,-577.740962,0.0004197,120]
[422766986,1779371962000,-151.0,0.0004197,120]
[422766993,1779371963000,-2059190.30406927,0.0004197,30]
[422766995,1779371966000,-152.16,0.00028156,30]
[422766994,1779371966000,-157.99,0.00025381,30]
[422766996,1779371967000,-1000000.0,0.0004,120]
[422766997,1779371967000,-4941509.69593073,0.0004197,30]
[422766999,1779371967000,-1000000.0,0.00042,120]
[422767000,1779371967000,-1000000.0,0.00042,120]
[422767001,1779371967000,-192862.68504828,0.00042,120]
[422766998,1779371967000,-865317.46902099,0.00042,120]
[422767002,1779371971000,-957.74820633,0.000396,30]
[422767003,1779371971000,-1000000.0,0.0004,120]
[422767004,1779371971000,-1000000.0,0.0004,120]
[422767005,1779371971000,-807137.31495172,0.00042,120]
[422767006,1779371971000,-1000000.0,0.00042,120]
[422767007,1779371971000,-1000000.0,0.00042,120]
[422767009,1779371971000,-1000000.0,0.00042,120]
[422767010,1779371971000,-200.0,0.00042,120]
[422767012,1779371971000,-2499.0,0.00042,120]
[422767011,1779371971000,-269526.09146814,0.00042,120]
[422767013,1779371971000,-1293217.4,0.00042,120]
[422767014,1779371971000,-626462.44537381,0.00042,120]
[422767008,1779371971000,-1000000.0,0.00042,120]
[422767015,1779371975000,1040.99,0.00028767,120]
[422767016,1779371981000,-151.0,0.00041,30]
[422767017,1779371981000,-151.0,0.00041,30]
[422767019,1779371981000,-151.0,0.00041,30]
[422767018,1779371981000,-151.0,0.00041,30]
[422767022,1779371981000,-732983.10462619,0.00042,120]
[422767021,1779371981000,-151.0,0.0004197,120]
[422767023,1779371981000,-1151.31411577,0.00042,30]
[422767020,1779371981000,-151.0,0.0004197,120]
[422767031,1779371982000,-500.0,0.00042,45]
[422767024,1779371982000,-500.0,0.00042,45]
[422767025,1779371982000,-500.0,0.00042,45]
[422767026,1779371982000,-500.0,0.00042,45]
[422767027,1779371982000,-500.0,0.00042,45]
[422767028,1779371982000,-500.0,0.00042,45]
[422767029,1779371982000,-500.0,0.00042,45]
[422767030,1779371982000,-500.0,0.00042,45]
[422767032,1779371982000,-500.0,0.00042,45]
[422767036,1779371982000,-500.0,0.00042,45]
[422767035,1779371982000,-500.0,0.00042,45]
[422767034,1779371982000,-500.0,0.00042,45]
[422767038,1779371982000,-500.0,0.00042,45]
[422767037,1779371982000,-500.0,0.00042,45]
[422767040,1779371982000,-500.0,0.00042,45]
[422767039,1779371982000,-500.0,0.00042,45]
[422767042,1779371982000,-500.0,0.00042,45]
[422767041,1779371982000,-500.0,0.00042,45]
[422767033,1779371982000,-500.0,0.00042,45]
[422767044,1779371983000,-1000.0,0.00042,120]
[422767043,1779371983000,-500.0,0.00042,45]
[422767045,1779371983000,-1552.89859186,0.00042,30]
[422767047,1779371983000,-245.90546004,0.00042,30]
[422767046,1779371983000,-160.9678487,0.00042,120]
[422767049,1779371983000,-1001625.81,0.00042,120]
[422767050,1779371983000,-500.0,0.00042,45]
[422767048,1779371983000,-500.0,0.00042,45]
[422767052,1779371983000,-100000.0,0.00042,120]
[422767051,1779371983000,-100000.0,0.00042,120]
[422767056,1779371983000,-16839.45133675,0.00042,120]
[422767057,1779371983000,-1157.53997478,0.00042,120]
[422767058,1779371983000,-279.0,0.00042,120]
[422767054,1779371983000,-155.0372782,0.00042,120]
[422767055,1779371983000,-1265.03965051,0.00042,120]
[422767053,1779371983000,-1360.12078676,0.00042,30]
[422767059,1779371984000,-1087.06,0.00042,120]
[422767060,1779371984000,-1416.39915665,0.00042,30]
[422767062,1779371984000,-153.84543305,0.00042,90]
[422767061,1779371984000,-218.4016102,0.00042,120]
[422767063,1779371984000,-2947.70085558,0.00042,120]
[422767065,1779371984000,-174.48093978,0.00042,30]
[422767066,1779371984000,-3716.6457105,0.00042,31]
[422767067,1779371984000,-1000.0,0.00042,120]
[422767064,1779371984000,-154.25568198,0.00042,120]
[422767069,1779371984000,-9239.62924078,0.00042,120]
[422767068,1779371984000,-200.64,0.00042,120]
[422767075,1779371984000,-1000000.0,0.00042,120]
[422767074,1779371984000,-8271.2654797,0.00042,30]
[422767073,1779371984000,-1800.0,0.00042,120]
[422767076,1779371984000,-1000000.0,0.00042,120]
[422767071,1779371984000,-2497.0,0.00042,120]
[422767070,1779371984000,-5149.31405571,0.00042,120]
[422767072,1779371984000,-10000.0,0.00042,120]
[422767083,1779371985000,-224.0,0.00042,120]
[422767077,1779371985000,-1640.83,0.00042,120]
[422767078,1779371985000,-1364.25659216,0.00042,30]
[422767079,1779371985000,-151.0,0.00042,120]
[422767080,1779371985000,-1810.0,0.00042,120]
[422767082,1779371985000,-11745.36711242,0.00042,120]
[422767081,1779371985000,-230.38620371,0.00042,120]
[422767085,1779371985000,-14147.0,0.00042,120]
[422767084,1779371985000,-54783.5442789,0.00042,60]
[422767086,1779371985000,-401.22379244,0.00042,120]
[422767093,1779371985000,-3588.0,0.00042,120]
[422767092,1779371985000,-3408.0,0.00042,120]
[422767091,1779371985000,-3588.0,0.00042,120]
[422767087,1779371985000,-100000.0,0.00042,120]
[422767089,1779371985000,-3588.0,0.00042,120]
[422767088,1779371985000,-3255.92577836,0.00042,120]
[422767094,1779371985000,-4407.0,0.00042,120]
[422767090,1779371985000,-2533.0,0.00042,120]
[422767101,1779371986000,-351.83513455,0.00042,30]
[422767096,1779371986000,-792.0,0.00042,120]
[422767098,1779371986000,-3588.0,0.00042,120]
[422767097,1779371986000,-482.76,0.00042,61]
[422767100,1779371986000,-500.0,0.00042,30]
[422767099,1779371986000,-458.52967976,0.00042,30]
[422767102,1779371986000,-3588.0,0.00042,120]
[422767095,1779371986000,-1142.0,0.00042,120]
[422767103,1779371986000,-1000000.0,0.00042,120]
[422767105,1779371986000,-339.57989942,0.00042,30]
[422767107,1779371986000,-287.61764233,0.00042,30]
[422767106,1779371986000,-226.38659962,0.00042,30]
[422767109,1779371986000,-1000000.0,0.00042,120]
[422767108,1779371986000,-1000000.0,0.00042,120]
[422767111,1779371986000,-162.758272,0.00042,120]
[422767110,1779371986000,-162.758272,0.00042,120]
[422767112,1779371986000,-162.758272,0.00042,120]
[422767104,1779371986000,-319.71979772,0.00042,30]
[422767119,1779371987000,-1500.45,0.00042,120]
[422767114,1779371987000,-153.0,0.00042,120]
[422767115,1779371987000,-237.59116772,0.00042,120]
[422767116,1779371987000,-1500.45,0.00042,120]
[422767117,1779371987000,-1500.45,0.00042,120]
[422767118,1779371987000,-1500.45,0.00042,120]
[422767120,1779371987000,-151.0,0.00042,120]
[422767113,1779371987000,-162.758264,0.00042,120]
[422767121,1779371987000,-151.0,0.00042,120]
[422767124,1779371987000,-577.740962,0.00042,120]
[422767123,1779371987000,-151.0,0.00042,120]
[422767125,1779371987000,-577.740962,0.00042,120]
[422767126,1779371987000,-577.740962,0.00042,120]
[422767127,1779371987000,-577.740962,0.00042,120]
[422767128,1779371987000,-577.740962,0.00042,120]
[422767122,1779371987000,-261.291124,0.00042,120]
[422767129,1779371988000,-577.740962,0.00042,120]
[422767130,1779371988000,-151.0,0.00042,120]
[422767131,1779371988000,-151.0,0.00042,120]
[422767133,1779371988000,-577.74096,0.00042,120]
[422767132,1779371988000,-577.740962,0.00042,120]
[422767135,1779371988000,-151.0,0.00042,120]
[422767134,1779371988000,-151.0,0.00042,120]
[422767137,1779371988000,-151.0,0.00042,120]
[422767146,1779371988000,-22500.0,0.00042065,120]
[422767138,1779371988000,-359.0,0.00042,60]
[422767139,1779371988000,-205.158111,0.00042,120]
[422767140,1779371988000,-1011623.83,0.00042,120]
[422767142,1779371988000,-153.07717679,0.00042002,30]
[422767141,1779371988000,-397.34153404,0.00042001,30]
[422767143,1779371988000,-230.80722798,0.00042003,30]
[422767144,1779371988000,-6001.08,0.0004202,120]
[422767136,1779371988000,-151.0,0.00042,120]
[422767145,1779371988000,-351.402352,0.0004205,59]
[422767153,1779371989000,-200.0,0.00042182,120]
[422767152,1779371989000,-231.11,0.0004218,120]
[422767151,1779371989000,-200.0,0.0004213,30]
[422767147,1779371989000,-267.9266333,0.0004208,120]
[422767148,1779371989000,-394.83,0.00042099,120]
[422767154,1779371989000,-250.0,0.00042187,120]
[422767150,1779371989000,-260.132666,0.00042109,59]
[422767156,1779371989000,-394.83,0.00042199,120]
[422767149,1779371989000,-1000.0,0.000421,120]
[422767157,1779371989000,-1000.0,0.000422,120]
[422767158,1779371989000,-10000.0,0.00042274,30]
[422767159,1779371989000,-327.218856,0.00042277,60]
[422767161,1779371989000,-1000.0,0.000423,120]
[422767160,1779371989000,-394.83,0.00042299,120]
[422767163,1779371989000,-931.391,0.000423,90]
[422767162,1779371989000,-1503.15,0.000423,90]
[422767164,1779371989000,-415.27669796,0.00042345,120]
[422767155,1779371989000,-1483.0,0.00042192,120]
[422767165,1779371990000,-1452.7,0.00042347,120]
[422767166,1779371990000,-665.13685682,0.00042375,120]
[422767167,1779371990000,-250.0,0.0004239,120]
[422767168,1779371990000,-394.83,0.00042399,120]
[422767169,1779371990000,-1000.0,0.000424,120]
[422767171,1779371990000,-1509.778,0.000424,90]
[422767170,1779371990000,-151.0,0.000424,120]
[422767172,1779371990000,-1509.77,0.000424,90]
[422767174,1779371990000,-450.0,0.00042428,30]
[422767175,1779371990000,-402.2275,0.00042429,120]
[422767176,1779371990000,-330.0,0.00042439,97]
[422767177,1779371990000,-22499.99,0.00042443,120]
[422767179,1779371990000,-50000.0,0.00042466,40]
[422767178,1779371990000,-450.49327761,0.0004245,120]
[422767173,1779371990000,-269089.0,0.000424,30]
[422767187,1779371991000,-236.0,0.00042483,120]
[422767180,1779371991000,-1000.0,0.00042466,120]
[422767181,1779371991000,-212.0,0.00042481,120]
[422767182,1779371991000,-216.0,0.00042481,120]
[422767183,1779371991000,-151.0,0.00042483,120]
[422767184,1779371991000,-509.0,0.00042483,120]
[422767185,1779371991000,-1474.0,0.00042483,120]
[422767195,1779371991000,-150.0,0.000425,120]
[422767188,1779371991000,-435.0,0.00042483,120]
[422767190,1779371991000,-187.0,0.00042483,120]
[422767189,1779371991000,-214.0,0.00042483,120]
[422767192,1779371991000,-210.0,0.00042483,120]
[422767191,1779371991000,-151.0,0.00042483,120]
[422767193,1779371991000,-152.0,0.00042483,120]
[422767194,1779371991000,-394.83,0.00042499,120]
[422767186,1779371991000,-180.0,0.00042483,120]
[422767196,1779371992000,-50000.0,0.000425,120]
[422767197,1779371992000,-500.0,0.000425,45]
[422767198,1779371992000,-500.0,0.000425,45]
[422767200,1779371992000,-500.0,0.000425,45]
[422767199,1779371992000,-500.0,0.000425,45]
[422767201,1779371992000,-1000.0,0.000425,120]
[422767202,1779371992000,-600.0,0.000425,120]
[422767203,1779371992000,-500.0,0.000425,45]
[422767205,1779371992000,-71420.01992346,0.000425,120]
[422767207,1779371992000,-1800.0,0.000425,120]
[422767206,1779371992000,-31496.59941758,0.000425,120]
[422767208,1779371992000,-852.0,0.000425,120]
[422767209,1779371992000,-15000.0,0.000425,120]
[422767210,1779371992000,-1060.88539879,0.000425,120]
[422767211,1779371992000,-1400.58380901,0.000425,120]
[422767212,1779371992000,-1990.88,0.00042546,120]
[422767213,1779371992000,-594.45,0.00042546,120]
[422767204,1779371992000,-1000.0,0.000425,120]
[422767214,1779371993000,-250.0,0.0004256,120]
[422767215,1779371993000,-500.0,0.00042565,120]
[422767216,1779371993000,-394.83,0.00042599,120]
[422767217,1779371993000,-1000.0,0.000426,120]
[422767218,1779371993000,-10000.0,0.00042613,120]
[422767219,1779371993000,-2000.0,0.0004268,120]
[422767221,1779371993000,-1000.0,0.000427,120]
[422767224,1779371993000,-231.11,0.0004272,120]
[422767222,1779371993000,-11169.98,0.000427,120]
[422767223,1779371993000,-250.0,0.00042702,120]
[422767226,1779371993000,-211.70056582,0.0004274,120]
[422767225,1779371993000,-1483.0,0.0004274,120]
[422767228,1779371993000,-394.83,0.00042799,120]
[422767227,1779371993000,-330.0,0.00042785,102]
[422767229,1779371993000,-1000.0,0.000428,120]
[422767220,1779371993000,-394.83,0.00042699,120]
[422767231,1779371994000,-762.07161643,0.000428,120]
[422767230,1779371994000,-10000.0,0.000428,120]
[422767232,1779371994000,-250.0,0.0004282,120]
[422767234,1779371994000,-394.83,0.00042899,120]
[422767236,1779371994000,-559.02565045,0.000429,120]
[422767235,1779371994000,-1000.0,0.000429,120]
[422767237,1779371994000,-80571.7841545,0.000429,120]
[422767233,1779371994000,-21098.00816386,0.00042887,30]
[422767242,1779372004000,-4081.45164778,0.000374,30]
[422767238,1779372004000,-533.91,0.00029715,30]
[422767239,1779372004000,-533.91,0.00031975,30]
[422767240,1779372004000,-855.67,0.00033567,30]
[422767241,1779372004000,-533.91,0.00034234,30]
[422767243,1779372004000,-160.0,0.00041,30]
[422767248,1779372004000,-163.39534449,0.00042887,30]
[422767245,1779372004000,-2500.0,0.00042,120]
[422767246,1779372004000,-2500.0,0.000423,120]
[422767247,1779372004000,-2500.0,0.000426,120]
[422767249,1779372004000,-24985.81283793,0.000429,120]
[422767250,1779372004000,-151.0,0.000429,120]
[422767244,1779372004000,-1000000.0,0.00042,120]
[422767256,1779372005000,-150.0,0.00042959,120]
[422767251,1779372005000,-156.0,0.000429,120]
[422767252,1779372005000,-59900.0,0.000429,120]
[422767253,1779372005000,-1141.1,0.000429,120]
[422767254,1779372005000,-2500.0,0.000429,120]
[422767255,1779372005000,-250.0,0.00042918,120]
[422767257,1779372005000,-10000.0,0.00042967,120]
[422767266,1779372005000,-1000000.0,0.00043,120]
[422767259,1779372005000,-340.15372625,0.0004299,60]
[422767260,1779372005000,-394.83,0.00042999,120]
[422767262,1779372005000,-1000000.0,0.00043,120]
[422767261,1779372005000,-1000000.0,0.00043,120]
[422767263,1779372005000,-1000000.0,0.00043,120]
[422767265,1779372005000,-1000000.0,0.00043,120]
[422767264,1779372005000,-1000000.0,0.00043,120]
[422767258,1779372005000,-200.0,0.0004298,30]
[422767267,1779372006000,-1000000.0,0.00043,120]
[422767268,1779372006000,-200.0,0.00043,120]
[422767269,1779372006000,-1020.0,0.00043,60]
[422767271,1779372006000,-882152.19377801,0.00043,120]
[422767270,1779372006000,-2096.66266554,0.00043,30]
[422767277,1779372553000,-300.0,0.00013566,2]
[422767272,1779372553000,-216.22,8.948e-05,2]
[422767273,1779372553000,-153.12137068,0.00013499,2]
[422767274,1779372553000,-150.0,0.00013499,7]
[422767275,1779372553000,-300.0,0.00013566,2]
[422767276,1779372553000,-1200.0,0.00013566,2]
[422767278,1779372553000,-150.0,0.00013566,2]
[422767282,1779372553000,-151.47665671,0.00014174,7]
[422767280,1779372553000,-1075.46,0.0001384,2]
[422767279,1779372553000,-150.0,0.00013701,2]
[422767281,1779372553000,-150.0,0.00014174,7]
[422767283,1779372553000,-255.0,0.00014678,2]
[422767284,1779372553000,-500.0,0.00014798,2]
[422767285,1779372553000,-500.0,0.00014798,2]
[422767286,1779372553000,-493.74206461,0.00014798,2]
[422767291,1779372634000,-2651.13448678,0.00014698,2]
[422767290,1779372634000,-101927.87036055,0.00014698,2]
[422767292,1779372634000,-27889.58132123,0.00014698,2]
[422767293,1779372634000,-29107.80365447,0.00014698,2]
[422767320,1779372640000,-1325.46,0.00014698,2]
[422767324,1779372640000,-2261.99891123,0.00014698,2]
[422767321,1779372640000,-922.18333418,0.00014698,2]
[422767323,1779372640000,-875.50000001,0.00014698,2]
[422767322,1779372640000,-1152.38968876,0.00014698,2]
[422767326,1779372641000,-385.665,0.00014698,2]
[422767325,1779372641000,-1614.52414516,0.00014698,2]
[422767329,1779372642000,1000.0,0.00028767,120]
[422767364,1779372643000,-2500.0,0.00016278,2]
[422767365,1779372643000,-2766.3,0.00016438,2]
[422767363,1779372643000,-263.0,0.00016198,2]
[422767366,1779372643000,-252.64087241,0.00016712,2]
[422767353,1779372643000,-206.16602365,0.00014849,2]
[422767355,1779372643000,-500.0,0.00014898,2]
[422767367,1779372643000,-169.89,0.00016712,2]
[422767356,1779372643000,-2879.0666166,0.000149,2]
[422767361,1779372643000,-433.0,0.00015885,2]
[422767360,1779372643000,-21999.93646922,0.00015406,2]
[422767358,1779372643000,-2500.0,0.00015167,2]
[422767362,1779372643000,-500.0,0.00016174,3]
[422767359,1779372643000,-2500.0,0.00015167,2]
[422767354,1779372643000,-331.47781579,0.00014849,2]
[422767357,1779372643000,-2500.0,0.00015167,2]
[422767350,1779372643000,-600.0,0.00014849,2]
[422767352,1779372643000,-319.79084614,0.00014849,2]
[422767349,1779372643000,-600.0,0.00014849,2]
[422767335,1779372643000,-1610.05953239,0.00014698,2]
[422767336,1779372643000,-269882.67436524,0.00014698,2]
[422767338,1779372643000,-6.25793539,0.00014798,2]
[422767337,1779372643000,-300.0,0.00014797,2]
[422767339,1779372643000,-500.0,0.00014798,2]
[422767341,1779372643000,-523.28200266,0.00014798,2]
[422767346,1779372643000,-300.0,0.00014849,2]
[422767340,1779372643000,-500.0,0.00014798,2]
[422767342,1779372643000,-578.19370214,0.00014798,2]
[422767343,1779372643000,-2500.0,0.00014823,2]
[422767344,1779372643000,-300.0,0.00014849,2]
[422767347,1779372643000,-300.0,0.00014849,2]
[422767348,1779372643000,-300.0,0.00014849,2]
[422767345,1779372643000,-300.0,0.00014849,2]
[422767351,1779372643000,-600.0,0.00014849,2]
[422767370,1779372643000,-736.0,0.00017188,2]
[422767374,1779372643000,-200.0,0.00017523,2]
[422767371,1779372643000,-2051.22,0.00017477,2]
[422767391,1779372643000,-2766.3,0.0001841,2]
[422767393,1779372643000,-1460.9032556,0.000185,2]
[422767388,1779372643000,-1460.9032556,0.000184,2]
[422767390,1779372643000,-2230.70503519,0.00018406,2]
[422767402,1779372643000,-150.0,0.00019042,2]
[422767395,1779372643000,-300.58472271,0.00018532,2]
[422767389,1779372643000,-597.90954568,0.000184,2]
[422767401,1779372643000,-16009.46094838,0.00018984,2]
[422767394,1779372643000,-597.90954568,0.000185,2]
[422767398,1779372643000,-597.90954568,0.000187,2]
[422767400,1779372643000,-601.8648813,0.00018839,2]
[422767397,1779372643000,-1460.9032556,0.000187,2]
[422767399,1779372643000,-200.0,0.000187,2]
[422767369,1779372643000,-500.0,0.00017045,2]
[422767403,1779372643000,-376.82096766,0.0001916,2]
[422767386,1779372643000,-597.90954568,0.000182,2]
[422767396,1779372643000,-1102.0,0.00018598,2]
[422767387,1779372643000,-59290.42,0.00018356,2]
[422767392,1779372643000,-180.6,0.00018454,2]
[422767373,1779372643000,-230.06,0.00017511,2]
[422767376,1779372643000,-216.22,0.00017545,2]
[422767375,1779372643000,-3558.82,0.00017544,2]
[422767377,1779372643000,-2206.13,0.00017604,2]
[422767380,1779372643000,-21345.9479312,0.000179,2]
[422767368,1779372643000,-154.29,0.00016806,2]
[422767379,1779372643000,-500.0,0.00017807,2]
[422767383,1779372643000,-1460.9032556,0.00018,2]
[422767385,1779372643000,-1460.9032556,0.000182,2]
[422767378,1779372643000,-963.19204656,0.00017726,2]
[422767372,1779372643000,-550.1,0.00017502,2]
[422767382,1779372643000,-16009.46094838,0.000179,2]
[422767381,1779372643000,-16009.4609484,0.000179,2]
[422767384,1779372643000,-597.90954568,0.00018,2]
[422767438,1779372644000,-151.0,0.00021249,2]
[422767455,1779372644000,-151.0,0.00021249,2]
[422767444,1779372644000,-151.0,0.00021249,2]
[422767437,1779372644000,-151.0,0.00021249,2]
[422767440,1779372644000,-151.0,0.00021249,2]
[422767442,1779372644000,-151.0,0.00021249,2]
[422767439,1779372644000,-151.0,0.00021249,2]
[422767441,1779372644000,-151.0,0.00021249,2]
[422767457,1779372644000,-151.0,0.00021249,2]
[422767447,1779372644000,-151.0,0.00021249,2]
[422767450,1779372644000,-151.0,0.00021249,2]
[422767453,1779372644000,-151.0,0.00021249,2]
[422767443,1779372644000,-151.0,0.00021249,2]
[422767474,1779372644000,-500.0,0.00021636,2]
[422767459,1779372644000,-151.0,0.00021249,2]
[422767461,1779372644000,-151.0,0.00021249,2]
[422767469,1779372644000,-151.0,0.00021249,2]
[422767465,1779372644000,-151.0,0.00021249,2]
[422767467,1779372644000,-151.0,0.00021249,2]
[422767471,1779372644000,-151.0,0.00021249,2]
[422767472,1779372644000,-3878.52,0.00021287,2]
[422767475,1779372644000,-397.26089247,0.00021734,2]
[422767481,1779372644000,-210.0,0.00022,2]
[422767476,1779372644000,-194.27130308,0.00021821,3]
[422767477,1779372644000,-5000.0,0.00021918,2]
[422767480,1779372644000,-487.43,0.00021978,2]
[422767436,1779372644000,-200.0,0.00021248,2]
[422767478,1779372644000,-3077.12,0.00021918,2]
[422767463,1779372644000,-151.0,0.00021249,2]
[422767435,1779372644000,-900.0,0.00021202,2]
[422767413,1779372644000,-175.96521261,0.0002,2]
[422767432,1779372644000,-6058.0,0.00021082,2]
[422767483,1779372644000,-850.0,0.00022,2]
[422767405,1779372644000,-592.0,0.00019555,2]
[422767404,1779372644000,-499.0,0.00019324,2]
[422767406,1779372644000,-309.79,0.000197,7]
[422767407,1779372644000,-150.0,0.00019727,2]
[422767409,1779372644000,-2500.0,0.000199,2]
[422767411,1779372644000,-53696.83522234,0.0002,2]
[422767414,1779372644000,-175.96521261,0.0002,2]
[422767412,1779372644000,-175.96521261,0.0002,2]
[422767418,1779372644000,-850.0,0.0002,2]
[422767410,1779372644000,-210.0,0.0002,2]
[422767417,1779372644000,-229.0,0.0002,2]
[422767408,1779372644000,-900.0,0.00019832,2]
[422767415,1779372644000,-175.96521261,0.0002,2]